[Event "*** Titled Tuesday Blitz"]
[Site "Chess.com"]
[Date "2020.11.10"]
[Round "8"]
[White "northridgehawk"]
[Black "capatl"]
[Result "1-0"]
[WhiteElo "2300"]
[BlackElo "2494"]
[TimeControl "180+1"]
[EndTime "11:30:07 PST"]
[Termination "northridgehawk won by resignation"]

1. e4 {[%clk 0:03:00.9]} 1... c5 {[%clk 0:02:41]} 2. Nf3 {[%clk 0:03:00.3]} 2...
e6 {[%clk 0:02:40.6]} 3. d4 {[%clk 0:03:00.6]} 3... cxd4 {[%clk 0:02:41.5]} 4.
Nxd4 {[%clk 0:03:00.8]} 4... a6 {[%clk 0:02:42.1]} 5. c4 {[%clk 0:02:58.9]} 5...
d6 {[%clk 0:02:42.2]} 6. Nc3 {[%clk 0:02:59]} 6... Nd7 {[%clk 0:02:42.8]} 7. Be2
{[%clk 0:02:58.4]} 7... Ngf6 {[%clk 0:02:43.4]} 8. O-O {[%clk 0:02:58.3]} 8...
Be7 {[%clk 0:02:43.9]} 9. Be3 {[%clk 0:02:57.2]} 9... O-O {[%clk 0:02:44]} 10.
f4 {[%clk 0:02:57.4]} 10... Qc7 {[%clk 0:02:43.2]} 11. Qe1 {[%clk 0:02:55.1]}
11... b6 {[%clk 0:02:43.2]} 12. Kh1 {[%clk 0:02:53.8]} 12... Bb7 {[%clk
0:02:43.2]} 13. Bd3 {[%clk 0:02:51.1]} 13... Nc5 {[%clk 0:02:42.4]} 14. Bc2
{[%clk 0:02:43.8]} 14... Ncxe4 {[%clk 0:02:42.3]} 15. f5 {[%clk 0:02:36.7]}
15... e5 {[%clk 0:02:38.6]} 16. Nxe4 {[%clk 0:01:49.3]} 16... Nxe4 {[%clk
0:02:29.9]} 17. f6 {[%clk 0:01:47.7]} 17... Nxf6 {[%clk 0:02:28.7]} 18. Nf5
{[%clk 0:01:47.6]} 18... Ne4 {[%clk 0:02:12.8]} 19. Bxb6 {[%clk 0:01:38.4]}
19... Qxb6 {[%clk 0:02:04.5]} 20. Nxe7+ {[%clk 0:01:38.3]} 20... Kh8 {[%clk
0:02:04.8]} 21. Bxe4 {[%clk 0:01:36.9]} 21... Bxe4 {[%clk 0:02:03.4]} 22. Qxe4
{[%clk 0:01:37.8]} 22... Qxb2 {[%clk 0:02:03.9]} 23. Rad1 {[%clk 0:01:33.8]}
23... Qxa2 {[%clk 0:02:03.4]} 24. Rxf7 {[%clk 0:01:29.8]} 24... Rae8 {[%clk
0:02:02.1]} 25. Qf5 {[%clk 0:01:20.2]} 25... Rxf7 {[%clk 0:01:59.2]} 26. Qxf7
{[%clk 0:01:19.9]} 26... Ra8 {[%clk 0:02:00.1]} 27. Rf1 {[%clk 0:01:13]} 1-0

[Event "*** Titled Tuesday Blitz"]
[Site "Chess.com"]
[Date "2020.11.10"]
[Round "8"]
[White "queen_iryna"]
[Black "guillembaches"]
[Result "0-1"]
[WhiteElo "2269"]
[BlackElo "2386"]
[TimeControl "180+1"]
[EndTime "11:30:40 PST"]
[Termination "guillembaches won by resignation"]

1. e4 {[%clk 0:03:00.9]} 1... c5 {[%clk 0:03:00.1]} 2. Nf3 {[%clk 0:03:00.6]}
2... d6 {[%clk 0:03:00.1]} 3. Bb5+ {[%clk 0:03:00.4]} 3... Bd7 {[%clk
0:03:00.6]} 4. Bxd7+ {[%clk 0:03:00.4]} 4... Qxd7 {[%clk 0:03:01.1]} 5. c4
{[%clk 0:02:59]} 5... e5 {[%clk 0:03:01.3]} 6. O-O {[%clk 0:02:55.6]} 6... Nc6
{[%clk 0:03:01.3]} 7. Nc3 {[%clk 0:02:55.2]} 7... g6 {[%clk 0:03:01]} 8. d3
{[%clk 0:02:55.5]} 8... Bg7 {[%clk 0:03:00.9]} 9. h3 {[%clk 0:02:55.9]} 9...
Nge7 {[%clk 0:03:00.6]} 10. Nh2 {[%clk 0:02:56.1]} 10... O-O {[%clk 0:02:58.8]}
11. f4 {[%clk 0:02:56.1]} 11... f5 {[%clk 0:02:56.5]} 12. Nf3 {[%clk 0:02:53.6]}
12... exf4 {[%clk 0:02:50.5]} 13. Nd5 {[%clk 0:02:41.6]} 13... fxe4 {[%clk
0:02:39.9]} 14. dxe4 {[%clk 0:02:42.5]} 14... Nd4 {[%clk 0:02:05.9]} 15. Nxf4
{[%clk 0:01:57.9]} 15... Rae8 {[%clk 0:02:05.4]} 16. Be3 {[%clk 0:01:31.7]}
16... Nxf3+ {[%clk 0:01:53.1]} 17. Rxf3 {[%clk 0:01:32.6]} 17... Bxb2 {[%clk
0:01:48.7]} 18. Rb1 {[%clk 0:01:32.8]} 18... Be5 {[%clk 0:01:47]} 19. Nd5 {[%clk
0:01:27.1]} 19... Rxf3 {[%clk 0:01:44.1]} 20. Qxf3 {[%clk 0:01:22.7]} 20... Nxd5
{[%clk 0:01:40.1]} 21. exd5 {[%clk 0:01:20.4]} 21... Rf8 {[%clk 0:01:37.6]} 22.
Qe4 {[%clk 0:01:19.6]} 22... Qe7 {[%clk 0:01:27.3]} 23. Bh6 {[%clk 0:01:11.6]}
23... Bh2+ {[%clk 0:01:25.5]} 0-1

[Event "*** Titled Tuesday Blitz"]
[Site "Chess.com"]
[Date "2020.11.10"]
[Round "8"]
[White "zurzan"]
[Black "ZverevLev"]
[Result "1-0"]
[WhiteElo "2068"]
[BlackElo "2251"]
[TimeControl "180+1"]
[EndTime "11:30:47 PST"]
[Termination "zurzan won by resignation"]

1. f4 {[%clk 0:03:00.9]} 1... e5 {[%clk 0:02:58.3]} 2. fxe5 {[%clk 0:03:00.5]}
2... d6 {[%clk 0:02:54.5]} 3. exd6 {[%clk 0:03:01.4]} 3... Bxd6 {[%clk
0:02:54.2]} 4. Nf3 {[%clk 0:03:02.3]} 4... Bg4 {[%clk 0:02:51.8]} 5. e3 {[%clk
0:03:01.5]} 5... Nc6 {[%clk 0:02:48.5]} 6. Nc3 {[%clk 0:03:01]} 6... Ne5 {[%clk
0:02:41.6]} 7. Be2 {[%clk 0:03:00.5]} 7... c6 {[%clk 0:02:30.4]} 8. O-O {[%clk
0:02:59.3]} 8... Nf6 {[%clk 0:02:17.2]} 9. Nxe5 {[%clk 0:02:57.6]} 9... Bxe2
{[%clk 0:02:15.5]} 10. Qxe2 {[%clk 0:02:55.5]} 10... Bxe5 {[%clk 0:02:15.3]} 11.
d4 {[%clk 0:02:54.1]} 11... Bc7 {[%clk 0:02:14]} 12. Bd2 {[%clk 0:02:45.1]}
12... h5 {[%clk 0:02:10.9]} 13. Be1 {[%clk 0:02:42.2]} 13... h4 {[%clk
0:02:03.2]} 14. Qf3 {[%clk 0:02:33.9]} 14... Qd6 {[%clk 0:02:00.2]} 15. g3
{[%clk 0:02:27]} 15... O-O-O {[%clk 0:01:53.2]} 16. Rd1 {[%clk 0:02:20.5]} 16...
Nh5 {[%clk 0:01:40]} 17. Ne4 {[%clk 0:02:10.5]} 17... Qh6 {[%clk 0:01:33.1]} 18.
g4 {[%clk 0:02:01.1]} 18... Nf6 {[%clk 0:01:25.9]} 19. Nxf6 {[%clk 0:01:59.3]}
19... gxf6 {[%clk 0:01:26.8]} 20. h3 {[%clk 0:01:52.5]} 20... Rdg8 {[%clk
0:01:24.8]} 21. e4 {[%clk 0:01:49.8]} 21... Kb8 {[%clk 0:01:16.3]} 22. Bd2
{[%clk 0:01:49.4]} 22... Qf8 {[%clk 0:01:10.7]} 23. Qxf6 {[%clk 0:01:43.5]}
23... Rg6 {[%clk 0:01:06.5]} 24. Qxf7 {[%clk 0:01:39.3]} 24... Qd6 {[%clk
0:01:02.8]} 25. Bf4 {[%clk 0:01:36.1]} 1-0

[Event "*** Titled Tuesday Blitz"]
[Site "Chess.com"]
[Date "2020.11.10"]
[Round "8"]
[White "Rakhimzhan_Alen"]
[Black "IANOV0007"]
[Result "1/2-1/2"]
[WhiteElo "2614"]
[BlackElo "2451"]
[TimeControl "180+1"]
[EndTime "11:30:50 PST"]
[Termination "Game drawn by agreement"]

1. d4 {[%clk 0:03:00.9]} 1... d6 {[%clk 0:02:59.6]} 2. c4 {[%clk 0:02:59.4]}
2... g6 {[%clk 0:02:58.6]} 3. Nc3 {[%clk 0:02:58.9]} 3... Bg7 {[%clk 0:02:58.5]}
4. Nf3 {[%clk 0:02:59.2]} 4... Bg4 {[%clk 0:02:57]} 5. h3 {[%clk 0:02:54.4]}
5... Bxf3 {[%clk 0:02:56]} 6. exf3 {[%clk 0:02:55.3]} 6... e6 {[%clk 0:02:55.5]}
7. f4 {[%clk 0:02:55.2]} 7... Ne7 {[%clk 0:02:54.6]} 8. Be2 {[%clk 0:02:53.8]}
8... d5 {[%clk 0:02:54]} 9. O-O {[%clk 0:02:52]} 9... c6 {[%clk 0:02:53.2]} 10.
Be3 {[%clk 0:02:48.9]} 10... Nd7 {[%clk 0:02:51.5]} 11. Qd2 {[%clk 0:02:48.7]}
11... O-O {[%clk 0:02:49.6]} 12. c5 {[%clk 0:02:48.7]} 12... b6 {[%clk
0:02:45.6]} 13. b4 {[%clk 0:02:48.2]} 13... a5 {[%clk 0:02:45]} 14. a3 {[%clk
0:02:48.5]} 14... Nf5 {[%clk 0:02:43.9]} 15. Rfd1 {[%clk 0:02:38.1]} 15... axb4
{[%clk 0:02:42.4]} 16. axb4 {[%clk 0:02:37.8]} 16... Rxa1 {[%clk 0:02:42]} 17.
Rxa1 {[%clk 0:02:37.8]} 17... bxc5 {[%clk 0:02:41.8]} 18. bxc5 {[%clk
0:02:37.4]} 18... Nxc5 {[%clk 0:02:21.7]} 19. dxc5 {[%clk 0:02:34]} 19... Bxc3
{[%clk 0:02:16.6]} 20. Qxc3 {[%clk 0:02:32.6]} 20... d4 {[%clk 0:02:16.6]} 21.
Bxd4 {[%clk 0:02:12.1]} 21... Qxd4 {[%clk 0:02:14.5]} 22. Qxd4 {[%clk
0:02:11.8]} 22... Nxd4 {[%clk 0:02:13.9]} 23. Bf1 {[%clk 0:02:04]} 23... Nb3
{[%clk 0:02:09.5]} 24. Rb1 {[%clk 0:02:02.4]} 24... Nxc5 {[%clk 0:02:07.7]} 25.
Rc1 {[%clk 0:02:02.6]} 25... Ne4 {[%clk 0:02:05.3]} 26. Rxc6 {[%clk 0:02:02.6]}
26... Rd8 {[%clk 0:02:04.5]} 27. Be2 {[%clk 0:01:48]} 27... Rd2 {[%clk 0:02:02]}
28. Kf1 {[%clk 0:01:47.8]} 28... Kg7 {[%clk 0:01:50.8]} 29. Rc4 {[%clk
0:01:43.6]} 29... Nd6 {[%clk 0:01:45.7]} 30. Rc1 {[%clk 0:01:39.5]} 30... Nf5
{[%clk 0:01:43.6]} 31. g3 {[%clk 0:01:38.9]} 31... h5 {[%clk 0:01:41.5]} 32. h4
{[%clk 0:01:38.5]} 32... Rb2 {[%clk 0:01:37.4]} 33. Rd1 {[%clk 0:01:36.8]} 33...
Kf6 {[%clk 0:01:34]} 34. Rd3 {[%clk 0:01:30.6]} 1/2-1/2

[Event "*** Titled Tuesday Blitz"]
[Site "Chess.com"]
[Date "2020.11.10"]
[Round "8"]
[White "Love_craft"]
[Black "Atousa1"]
[Result "1-0"]
[WhiteElo "2596"]
[BlackElo "2417"]
[TimeControl "180+1"]
[EndTime "11:31:07 PST"]
[Termination "Love_craft won by resignation"]

1. Nf3 {[%clk 0:03:00.9]} 1... d5 {[%clk 0:02:59.6]} 2. g3 {[%clk 0:03:00.2]}
2... Nf6 {[%clk 0:02:59.2]} 3. Bg2 {[%clk 0:03:00.2]} 3... c6 {[%clk 0:02:59.7]}
4. O-O {[%clk 0:03:00.5]} 4... Bg4 {[%clk 0:03:00]} 5. h3 {[%clk 0:02:59.8]}
5... Bh5 {[%clk 0:02:56.4]} 6. b3 {[%clk 0:03:00]} 6... Nbd7 {[%clk 0:02:46.8]}
7. Bb2 {[%clk 0:03:00]} 7... e6 {[%clk 0:02:46.2]} 8. d3 {[%clk 0:02:57.4]} 8...
Be7 {[%clk 0:02:45.2]} 9. Nbd2 {[%clk 0:02:57.7]} 9... O-O {[%clk 0:02:44.9]}
10. e4 {[%clk 0:02:58.1]} 10... a5 {[%clk 0:02:23.7]} 11. a4 {[%clk 0:02:55.4]}
11... Bxf3 {[%clk 0:02:11.3]} 12. Qxf3 {[%clk 0:02:52.4]} 12... e5 {[%clk
0:02:09.5]} 13. Qe2 {[%clk 0:02:46.5]} 13... Re8 {[%clk 0:01:56.9]} 14. f4
{[%clk 0:02:32.4]} 14... exf4 {[%clk 0:01:49.6]} 15. gxf4 {[%clk 0:02:33.3]}
15... dxe4 {[%clk 0:01:45.8]} 16. dxe4 {[%clk 0:02:34.2]} 16... Bc5+ {[%clk
0:01:41.4]} 17. Kh1 {[%clk 0:02:32.8]} 17... Qe7 {[%clk 0:01:33]} 18. e5 {[%clk
0:02:16.6]} 18... Nd5 {[%clk 0:01:32.5]} 19. Nc4 {[%clk 0:02:01.2]} 19... b5
{[%clk 0:01:32.3]} 20. axb5 {[%clk 0:02:00.7]} 20... cxb5 {[%clk 0:01:33.2]} 21.
Bxd5 {[%clk 0:01:49.6]} 21... bxc4 {[%clk 0:01:33.6]} 22. Bxa8 {[%clk
0:01:31.8]} 22... Rxa8 {[%clk 0:01:34.5]} 23. Qxc4 {[%clk 0:01:18.8]} 23... Nf8
{[%clk 0:01:22]} 24. Qe4 {[%clk 0:01:07.7]} 24... Ne6 {[%clk 0:01:04.6]} 25.
Qxa8+ {[%clk 0:01:05.6]} 1-0

[Event "*** Titled Tuesday Blitz"]
[Site "Chess.com"]
[Date "2020.11.10"]
[Round "8"]
[White "eCztery"]
[Black "Ave_Mariia"]
[Result "1-0"]
[WhiteElo "2325"]
[BlackElo "2513"]
[TimeControl "180+1"]
[EndTime "11:31:08 PST"]
[Termination "eCztery won by resignation"]

1. e4 {[%clk 0:02:29.7]} 1... c5 {[%clk 0:02:59.7]} 2. Nf3 {[%clk 0:02:27.1]}
2... d6 {[%clk 0:03:00.1]} 3. d4 {[%clk 0:02:27]} 3... cxd4 {[%clk 0:03:01]} 4.
Qxd4 {[%clk 0:02:27.6]} 4... Nc6 {[%clk 0:02:59.7]} 5. Bb5 {[%clk 0:02:27]} 5...
Bd7 {[%clk 0:03:00.2]} 6. Bxc6 {[%clk 0:02:27.1]} 6... Bxc6 {[%clk 0:03:00.7]}
7. Nc3 {[%clk 0:02:27.6]} 7... Nf6 {[%clk 0:03:00.3]} 8. Bg5 {[%clk 0:02:27.5]}
8... e6 {[%clk 0:02:57.1]} 9. O-O-O {[%clk 0:02:27.3]} 9... Be7 {[%clk
0:02:57.1]} 10. Rhe1 {[%clk 0:02:23.4]} 10... Qa5 {[%clk 0:02:48.5]} 11. Kb1
{[%clk 0:02:23.2]} 11... Rc8 {[%clk 0:02:33.3]} 12. Qd2 {[%clk 0:02:22.9]} 12...
b5 {[%clk 0:02:23.3]} 13. Bxf6 {[%clk 0:01:35.4]} 13... Bxf6 {[%clk 0:02:15.9]}
14. Qxd6 {[%clk 0:01:21.4]} 14... Bxc3 {[%clk 0:02:06.4]} 15. bxc3 {[%clk
0:01:21]} 15... Qxc3 {[%clk 0:02:02.9]} 16. Ne5 {[%clk 0:01:16.5]} 16... a5
{[%clk 0:01:02]} 17. a3 {[%clk 0:01:08.1]} 17... b4 {[%clk 0:00:56.9]} 18. Re3
{[%clk 0:01:07.7]} 1-0

[Event "*** Titled Tuesday Blitz"]
[Site "Chess.com"]
[Date "2020.11.10"]
[Round "8"]
[White "rasmussvane"]
[Black "lolo9292"]
[Result "1-0"]
[WhiteElo "2861"]
[BlackElo "2544"]
[TimeControl "180+1"]
[EndTime "11:31:13 PST"]
[Termination "rasmussvane won by resignation"]

1. Nf3 {[%clk 0:03:00.9]} 1... Nf6 {[%clk 0:02:56.7]} 2. g3 {[%clk 0:03:01.2]}
2... g6 {[%clk 0:02:56.5]} 3. Bg2 {[%clk 0:03:01.5]} 3... Bg7 {[%clk 0:02:57.4]}
4. O-O {[%clk 0:03:02]} 4... O-O {[%clk 0:02:58.3]} 5. d4 {[%clk 0:03:02.6]}
5... d6 {[%clk 0:02:58.3]} 6. Re1 {[%clk 0:03:02.7]} 6... Bg4 {[%clk 0:02:57.6]}
7. h3 {[%clk 0:02:57.9]} 7... Bxf3 {[%clk 0:02:57.7]} 8. exf3 {[%clk 0:02:58]}
8... d5 {[%clk 0:02:58]} 9. f4 {[%clk 0:02:57.6]} 9... e6 {[%clk 0:02:58.6]} 10.
Nd2 {[%clk 0:02:57.6]} 10... c6 {[%clk 0:02:59.1]} 11. Nf3 {[%clk 0:02:57.9]}
11... Nbd7 {[%clk 0:02:59.6]} 12. b3 {[%clk 0:02:58.3]} 12... a6 {[%clk
0:02:59.3]} 13. Bb2 {[%clk 0:02:57.9]} 13... Ne4 {[%clk 0:02:59.4]} 14. Qe2
{[%clk 0:02:55.8]} 14... Re8 {[%clk 0:02:58.5]} 15. Ne5 {[%clk 0:02:55.4]} 15...
Nd6 {[%clk 0:02:57.1]} 16. Rad1 {[%clk 0:02:54.1]} 16... f6 {[%clk 0:02:56.2]}
17. Nd3 {[%clk 0:02:53.3]} 17... Kh8 {[%clk 0:02:55.6]} 18. h4 {[%clk
0:02:52.9]} 18... Nf5 {[%clk 0:02:53.8]} 19. h5 {[%clk 0:02:51.5]} 19... Qe7
{[%clk 0:02:49.8]} 20. c4 {[%clk 0:02:49.3]} 20... Qf7 {[%clk 0:02:47]} 21. Bf3
{[%clk 0:02:47.2]} 21... Bh6 {[%clk 0:02:35.9]} 22. Kg2 {[%clk 0:02:45]} 22...
g5 {[%clk 0:02:35.7]} 23. fxg5 {[%clk 0:02:38.9]} 23... Bxg5 {[%clk 0:02:36.6]}
24. Bg4 {[%clk 0:02:37.9]} 24... dxc4 {[%clk 0:02:28.3]} 25. bxc4 {[%clk
0:02:35.4]} 25... Nb6 {[%clk 0:02:27]} 26. Nc5 {[%clk 0:02:32.9]} 26... Ng7
{[%clk 0:02:21.8]} 27. Nxe6 {[%clk 0:02:26.8]} 27... Qe7 {[%clk 0:02:15.4]} 28.
d5 {[%clk 0:02:12.9]} 28... Nxe6 {[%clk 0:02:12.8]} 29. Bxe6 {[%clk 0:02:12]}
29... cxd5 {[%clk 0:02:12.5]} 30. cxd5 {[%clk 0:02:12.9]} 30... Rad8 {[%clk
0:02:10.7]} 31. Qg4 {[%clk 0:02:08.8]} 31... Qg7 {[%clk 0:02:06.8]} 32. d6
{[%clk 0:01:46.3]} 32... Bh6 {[%clk 0:01:55.7]} 33. Qf5 {[%clk 0:01:43.9]} 33...
Rf8 {[%clk 0:01:53.6]} 34. d7 {[%clk 0:01:38.9]} 34... Na4 {[%clk 0:01:52.4]}
35. Ba3 {[%clk 0:01:37.1]} 35... b5 {[%clk 0:01:49.8]} 36. Bxf8 {[%clk
0:01:36.1]} 36... Qxf8 {[%clk 0:01:50.7]} 37. Bb3 {[%clk 0:01:32.9]} 37... Nc3
{[%clk 0:01:44.7]} 38. Re8 {[%clk 0:01:30.7]} 38... Rxe8 {[%clk 0:01:44.7]} 39.
dxe8=Q {[%clk 0:01:31.6]} 39... Qxe8 {[%clk 0:01:45.6]} 40. Qxf6+ {[%clk
0:01:30]} 40... Bg7 {[%clk 0:01:46]} 41. Qd8 {[%clk 0:01:22.1]} 41... Qf8 {[%clk
0:01:44.9]} 42. Qxf8+ {[%clk 0:01:20.3]} 42... Bxf8 {[%clk 0:01:45.8]} 43. Rd8
{[%clk 0:01:20.3]} 43... Kg7 {[%clk 0:01:44.5]} 44. h6+ {[%clk 0:01:20.5]} 44...
Kxh6 {[%clk 0:01:44.6]} 45. Rxf8 {[%clk 0:01:21.1]} 1-0

[Event "*** Titled Tuesday Blitz"]
[Site "Chess.com"]
[Date "2020.11.10"]
[Round "8"]
[White "RobPeresian"]
[Black "WeAintSurePal"]
[Result "1/2-1/2"]
[WhiteElo "2453"]
[BlackElo "2305"]
[TimeControl "180+1"]
[EndTime "11:31:29 PST"]
[Termination "Game drawn - insufficient material"]

1. Nf3 {[%clk 0:03:00.9]} 1... Nf6 {[%clk 0:02:59.2]} 2. c4 {[%clk 0:03:00.9]}
2... e6 {[%clk 0:02:59.2]} 3. Nc3 {[%clk 0:02:56]} 3... Bb4 {[%clk 0:02:56.5]}
4. g4 {[%clk 0:02:55.7]} 4... d6 {[%clk 0:02:49.3]} 5. Qc2 {[%clk 0:02:52.1]}
5... Nc6 {[%clk 0:02:48.2]} 6. e3 {[%clk 0:02:52]} 6... e5 {[%clk 0:02:43.6]} 7.
h3 {[%clk 0:02:47.2]} 7... a5 {[%clk 0:02:43.3]} 8. a3 {[%clk 0:02:42.8]} 8...
Bxc3 {[%clk 0:02:42.2]} 9. Qxc3 {[%clk 0:02:43.7]} 9... O-O {[%clk 0:02:39.8]}
10. b3 {[%clk 0:02:41.3]} 10... Ne4 {[%clk 0:02:36]} 11. Qc2 {[%clk 0:02:40.7]}
11... f5 {[%clk 0:02:36.9]} 12. Bd3 {[%clk 0:02:35.5]} 12... Nxf2 {[%clk
0:02:32.8]} 13. Kxf2 {[%clk 0:02:34.8]} 13... e4 {[%clk 0:02:32.7]} 14. Be2
{[%clk 0:02:20.5]} 14... exf3 {[%clk 0:02:22.6]} 15. Bd3 {[%clk 0:02:16.7]}
15... Ne5 {[%clk 0:02:21.7]} 16. Bb2 {[%clk 0:02:14]} 16... Qh4+ {[%clk
0:02:17.3]} 17. Kf1 {[%clk 0:02:09.4]} 17... fxg4 {[%clk 0:02:14.3]} 18. Bxe5
{[%clk 0:02:04.4]} 18... dxe5 {[%clk 0:02:13.9]} 19. Bxh7+ {[%clk 0:01:15.2]}
19... Qxh7 {[%clk 0:02:06.4]} 20. Qxh7+ {[%clk 0:01:16.1]} 20... Kxh7 {[%clk
0:02:07.1]} 21. hxg4+ {[%clk 0:01:16.4]} 21... Kg6 {[%clk 0:02:07.7]} 22. Kf2
{[%clk 0:01:15.2]} 22... Bxg4 {[%clk 0:02:02.9]} 23. Rag1 {[%clk 0:01:14.9]}
23... Kf5 {[%clk 0:02:03]} 24. e4+ {[%clk 0:01:14.1]} 24... Kxe4 {[%clk
0:02:00]} 25. Rh4 {[%clk 0:01:13.7]} 25... Rf4 {[%clk 0:01:56.9]} 26. Rhxg4
{[%clk 0:01:09.7]} 26... Rxg4 {[%clk 0:01:56.8]} 27. Rxg4+ {[%clk 0:01:09.5]}
27... Kd3 {[%clk 0:01:57.7]} 28. Rxg7 {[%clk 0:01:10]} 28... Kxd2 {[%clk
0:01:52.1]} 29. Kxf3 {[%clk 0:01:08.2]} 29... Rc8 {[%clk 0:01:49.9]} 30. Ke4
{[%clk 0:01:05.5]} 30... Kc3 {[%clk 0:01:49.7]} 31. Rg3+ {[%clk 0:01:06]} 31...
Kb2 {[%clk 0:01:49.9]} 32. b4 {[%clk 0:00:46.1]} 32... axb4 {[%clk 0:01:49.1]}
33. axb4 {[%clk 0:00:47]} 33... Re8 {[%clk 0:01:49.4]} 34. Rg7 {[%clk
0:00:44.8]} 34... Kb3 {[%clk 0:01:48.8]} 35. Rxc7 {[%clk 0:00:44]} 35... Kxb4
{[%clk 0:01:48.9]} 36. Rxb7+ {[%clk 0:00:44]} 36... Kxc4 {[%clk 0:01:49.3]} 37.
Rc7+ {[%clk 0:00:42.8]} 37... Kb5 {[%clk 0:01:49.1]} 38. Rc1 {[%clk 0:00:41.9]}
38... Re7 {[%clk 0:01:48.2]} 39. Rc2 {[%clk 0:00:41.9]} 39... Kb4 {[%clk
0:01:47.5]} 40. Rc1 {[%clk 0:00:42.3]} 40... Kb3 {[%clk 0:01:47.5]} 41. Rc5
{[%clk 0:00:42.4]} 41... Kb4 {[%clk 0:01:46.9]} 42. Rxe5 {[%clk 0:00:42.5]}
42... Rxe5+ {[%clk 0:01:47.8]} 43. Kxe5 {[%clk 0:00:43.4]} 1/2-1/2

[Event "*** Titled Tuesday Blitz"]
[Site "Chess.com"]
[Date "2020.11.10"]
[Round "8"]
[White "124chess"]
[Black "Mr_Heisenberg13"]
[Result "1-0"]
[WhiteElo "2718"]
[BlackElo "2485"]
[TimeControl "180+1"]
[EndTime "11:31:30 PST"]
[Termination "124chess won by resignation"]

1. c4 {[%clk 0:03:00.9]} 1... Nf6 {[%clk 0:02:58.2]} 2. Nc3 {[%clk 0:03:00.7]}
2... e6 {[%clk 0:02:58.1]} 3. d4 {[%clk 0:02:59.6]} 3... d5 {[%clk 0:02:57.7]}
4. cxd5 {[%clk 0:02:59.6]} 4... exd5 {[%clk 0:02:57.6]} 5. Bg5 {[%clk
0:02:59.7]} 5... c6 {[%clk 0:02:56.2]} 6. e3 {[%clk 0:02:59]} 6... Be7 {[%clk
0:02:56.2]} 7. Bd3 {[%clk 0:02:56.2]} 7... O-O {[%clk 0:02:53.6]} 8. Nf3 {[%clk
0:02:55]} 8... Re8 {[%clk 0:02:51.6]} 9. O-O {[%clk 0:02:54.8]} 9... Nbd7 {[%clk
0:02:52.1]} 10. Qc2 {[%clk 0:02:54.9]} 10... Nf8 {[%clk 0:02:49.4]} 11. Rab1
{[%clk 0:02:55.3]} 11... a5 {[%clk 0:02:48.2]} 12. a3 {[%clk 0:02:55.1]} 12...
Ng6 {[%clk 0:02:45]} 13. b4 {[%clk 0:02:54.5]} 13... axb4 {[%clk 0:02:45.3]} 14.
axb4 {[%clk 0:02:55.4]} 14... Bg4 {[%clk 0:02:39.5]} 15. Nd2 {[%clk 0:02:54.5]}
15... Qd7 {[%clk 0:02:29.5]} 16. b5 {[%clk 0:02:52.3]} 16... h6 {[%clk 0:02:29]}
17. Bxf6 {[%clk 0:02:51.6]} 17... Bxf6 {[%clk 0:02:29.9]} 18. bxc6 {[%clk
0:02:45.3]} 18... bxc6 {[%clk 0:02:29.2]} 19. Na4 {[%clk 0:02:37.9]} 19... Nh4
{[%clk 0:02:18.5]} 20. Nc5 {[%clk 0:02:37.2]} 20... Qc8 {[%clk 0:02:18]} 21.
Rfc1 {[%clk 0:02:21.6]} 21... Bg5 {[%clk 0:01:21.7]} 22. Bf1 {[%clk 0:02:14.2]}
22... Bf5 {[%clk 0:01:14.6]} 23. Nd3 {[%clk 0:02:14.1]} 23... Re6 {[%clk
0:01:11.9]} 24. g3 {[%clk 0:02:11.2]} 24... Ng6 {[%clk 0:00:57.8]} 25. Nf3
{[%clk 0:02:08]} 25... Be4 {[%clk 0:00:55.9]} 26. Nd2 {[%clk 0:01:53.5]} 26...
h5 {[%clk 0:00:51.6]} 27. Bh3 {[%clk 0:01:50.3]} 27... f5 {[%clk 0:00:48.8]} 28.
Nxe4 {[%clk 0:01:47.2]} 28... dxe4 {[%clk 0:00:26.4]} 29. Nc5 {[%clk 0:01:43.8]}
29... Rf6 {[%clk 0:00:25]} 30. Nxe4 {[%clk 0:01:43.5]} 1-0

[Event "*** Titled Tuesday Blitz"]
[Site "Chess.com"]
[Date "2020.11.10"]
[Round "8"]
[White "Chess2019Player"]
[Black "akanga001"]
[Result "0-1"]
[WhiteElo "2222"]
[BlackElo "1947"]
[TimeControl "180+1"]
[EndTime "11:31:33 PST"]
[Termination "akanga001 won by resignation"]

1. b3 {[%clk 0:03:00.9]} 1... Nf6 {[%clk 0:02:57.1]} 2. Bb2 {[%clk 0:03:01.4]}
2... d5 {[%clk 0:02:55]} 3. Nf3 {[%clk 0:02:59.9]} 3... e6 {[%clk 0:02:53.4]} 4.
e3 {[%clk 0:02:58.7]} 4... Be7 {[%clk 0:02:50.3]} 5. Be2 {[%clk 0:02:59.1]} 5...
c5 {[%clk 0:02:49.8]} 6. Ne5 {[%clk 0:02:58.5]} 6... Nc6 {[%clk 0:02:48.8]} 7.
d3 {[%clk 0:02:57.2]} 7... Nxe5 {[%clk 0:02:47.6]} 8. Bxe5 {[%clk 0:02:58.1]}
8... Bd6 {[%clk 0:02:47.7]} 9. Bxd6 {[%clk 0:02:54.8]} 9... Qxd6 {[%clk
0:02:47.2]} 10. O-O {[%clk 0:02:55.6]} 10... O-O {[%clk 0:02:46.2]} 11. Nd2
{[%clk 0:02:54.9]} 11... e5 {[%clk 0:02:45.5]} 12. e4 {[%clk 0:02:52.7]} 12...
b6 {[%clk 0:02:44.9]} 13. exd5 {[%clk 0:02:52.4]} 13... Nxd5 {[%clk 0:02:41.8]}
14. Bf3 {[%clk 0:02:47]} 14... Bb7 {[%clk 0:02:41.4]} 15. Ne4 {[%clk 0:02:46.3]}
15... Qe7 {[%clk 0:02:41.3]} 16. Qd2 {[%clk 0:02:44.8]} 16... f5 {[%clk
0:02:39.7]} 17. Nc3 {[%clk 0:02:33.2]} 17... Nxc3 {[%clk 0:02:35.8]} 18. Bxb7
{[%clk 0:02:34.1]} 18... Qxb7 {[%clk 0:02:28.9]} 19. Qxc3 {[%clk 0:02:33.7]}
19... Rae8 {[%clk 0:02:28.3]} 20. Rae1 {[%clk 0:02:33.2]} 20... e4 {[%clk
0:02:26.5]} 21. dxe4 {[%clk 0:02:30.1]} 21... fxe4 {[%clk 0:02:26.1]} 22. Re3
{[%clk 0:02:29]} 22... Qd5 {[%clk 0:02:21.2]} 23. Rfe1 {[%clk 0:02:23.6]} 23...
Rf7 {[%clk 0:02:17.2]} 24. f3 {[%clk 0:02:14.3]} 24... Rfe7 {[%clk 0:02:14.5]}
25. Qc4 {[%clk 0:01:44.3]} 25... Qxc4 {[%clk 0:02:08.2]} 26. bxc4 {[%clk
0:01:45.2]} 26... Kf7 {[%clk 0:02:06.9]} 27. Rxe4 {[%clk 0:01:38.2]} 27... Rxe4
{[%clk 0:02:00.5]} 28. Rxe4 {[%clk 0:01:39.1]} 28... Rd8 {[%clk 0:01:59.5]} 29.
Re5 {[%clk 0:01:09.6]} 29... Rd2 {[%clk 0:01:56.6]} 30. Rd5 {[%clk 0:01:09.3]}
30... Rxc2 {[%clk 0:01:54.5]} 31. Rd7+ {[%clk 0:01:09.3]} 31... Kf6 {[%clk
0:01:54.6]} 32. Rxa7 {[%clk 0:01:09.1]} 32... Rxc4 {[%clk 0:01:53.8]} 33. Kf2
{[%clk 0:01:05.2]} 33... Rc2+ {[%clk 0:01:51.6]} 34. Kg3 {[%clk 0:01:04.1]}
34... c4 {[%clk 0:01:51.5]} 35. a4 {[%clk 0:01:03.3]} 35... c3 {[%clk
0:01:51.4]} 36. Ra6 {[%clk 0:01:02.7]} 36... Rb2 {[%clk 0:01:48.9]} 37. Ra7
{[%clk 0:00:54.6]} 37... c2 {[%clk 0:01:48.4]} 38. Rc7 {[%clk 0:00:54.8]} 38...
Ra2 {[%clk 0:01:39.9]} 39. Kf4 {[%clk 0:00:51.2]} 39... Rxa4+ {[%clk 0:01:37.4]}
0-1